fUST/lending_fUST_20250507
["ID","MTS","AMOUNT","RATE_DAILY","PERIOD"]
[360113386,1746553845896,-567.587025,0.00019178,2]
[360113388,1746553845906,-300.0,0.00019178,2]
[360113390,1746553845916,-1665.41685812,0.00019205,5]
[360113392,1746553845925,-156.587,0.00019233,2]
[360113394,1746553845935,-200.0,0.00019275,4]
[360113396,1746553845945,-231.99734595,0.00019275,4]
[360113398,1746553845954,-160.0,0.00019281,2]
[360113400,1746553845963,-160.0,0.00019281,2]
[360113402,1746553845973,-160.0,0.00019281,2]
[360113404,1746553845982,-160.0,0.00019281,2]
[360113406,1746553845993,-160.0,0.00019281,2]
[360113408,1746553846003,-160.0,0.00019281,2]
[360113410,1746553846012,-162.380719,0.00019288,2]
[360113412,1746553846022,-582.69620448,0.00019322,2]
[360113414,1746553846032,-100000.0,0.00019329,2]
[360113416,1746553846042,-168.3888056,0.00019343,2]
[360113418,1746553846051,-150.87121571,0.00019352,2]
[360113420,1746553846061,-174.61919141,0.00019398,2]
[360113422,1746553846070,-151.0,0.000194,2]
[360113425,1746553846084,-151.0,0.00019447,2]
[360113427,1746553846094,-151.0,0.00019447,2]
[360113428,1746553846103,-151.0,0.00019447,2]
[360113443,1746553846218,-151.0,0.00019452,2]
[360113445,1746553846241,-151.0,0.00019452,2]
[360113447,1746553846251,-151.0,0.00019452,2]
[360113449,1746553846261,-400.0,0.00019452,2]
[360113451,1746553846270,-400.0,0.00019452,2]
[360113453,1746553846279,-400.0,0.00019452,2]
[360113455,1746553846288,-400.0,0.00019452,2]
[360113457,1746553846297,-400.0,0.00019452,2]
[360113459,1746553846306,-400.0,0.00019452,2]
[360113461,1746553846315,-400.0,0.00019452,2]
[360113463,1746553846324,-523.68315863,0.00019452,2]
[360113465,1746553846334,-400.0,0.00019452,2]
[360113467,1746553846343,-400.0,0.00019452,2]
[360113469,1746553846353,-400.0,0.00019452,2]
[360113471,1746553846363,-513.03499992,0.00019452,2]
[360113473,1746553846372,-400.0,0.00019452,2]
[360113475,1746553846382,-400.0,0.00019452,2]
[360113477,1746553846391,-504.90921476,0.00019452,2]
[360113480,1746553846402,-400.0,0.00019452,2]
[360113482,1746553846411,-400.0,0.00019452,2]
[360113484,1746553846421,-400.0,0.00019452,2]
[360113486,1746553846431,-400.0,0.00019452,2]
[360113488,1746553846441,-400.0,0.00019452,2]
[360113490,1746553846450,-400.0,0.00019452,2]
[360113492,1746553846460,-400.0,0.00019452,2]
[360113494,1746553846469,-400.0,0.00019452,2]
[360113496,1746553846479,-400.0,0.00019452,2]
[360113498,1746553846489,-400.0,0.00019452,2]
[360113500,1746553846499,-400.0,0.00019452,2]
[360113502,1746553846508,-500.0,0.00019452,2]
[360113504,1746553846518,-400.0,0.00019452,2]
[360113506,1746553846528,-400.0,0.00019452,2]
[360113508,1746553846538,-405.72679758,0.00019452,2]
[360113510,1746553846547,-289.22090928,0.00019452,2]
[360113512,1746553846557,-400.0,0.00019452,2]
[360113514,1746553846567,-400.0,0.00019452,2]
[360113516,1746553846576,-400.0,0.00019452,2]
[360113518,1746553846586,-400.0,0.00019452,2]
[360113521,1746553846596,-400.0,0.00019452,2]
[360113523,1746553846606,-400.0,0.00019452,2]
[360113524,1746553846616,-403.97133091,0.00019452,2]
[360113526,1746553846625,-400.0,0.00019452,2]
[360113529,1746553846636,-400.0,0.00019452,2]
[360113530,1746553846645,-400.0,0.00019452,2]
[360113533,1746553846655,-400.0,0.00019452,2]
[360113535,1746553846669,-879.69,0.00019452,2]
[360113537,1746553846679,-207.46873216,0.00019452,2]
[360113539,1746553846691,-400.0,0.00019452,2]
[360113541,1746553846700,-400.0,0.00019452,2]
[360113543,1746553846710,-400.0,0.00019452,2]
[360113545,1746553846720,-400.0,0.00019452,2]
[360113547,1746553846730,-176.639,0.00019452,2]
[360113549,1746553846740,-300.0,0.00019452,2]
[360113551,1746553846750,-406.30028752,0.00019452,2]
[360113554,1746553846760,-400.0,0.00019452,2]
[360113556,1746553846770,-400.0,0.00019452,2]
[360113558,1746553846779,-400.0,0.00019452,2]
[360113560,1746553846789,-400.0,0.00019452,2]
[360113562,1746553846798,-400.0,0.00019452,2]
[360113564,1746553846808,-233.76033808,0.00019452,2]
[360113566,1746553846818,-404.73978031,0.00019452,2]
[360113568,1746553846828,-403.58495225,0.00019452,2]
[360113570,1746553846837,-400.0,0.00019452,2]
[360113572,1746553846847,-400.0,0.00019452,2]
[360113574,1746553846856,-402.71098712,0.00019452,2]
[360113576,1746553846866,-405.2688485,0.00019452,2]
[360113578,1746553846876,-220.64867925,0.00019452,2]
[360113580,1746553846885,-401.69554683,0.00019452,2]
[360113582,1746553846895,-400.0,0.00019452,2]
[360113584,1746553846905,-934.45,0.00019452,2]
[360113586,1746553846914,-400.0,0.00019452,2]
[360113588,1746553846924,-401.61499065,0.00019452,2]
[360113590,1746553846933,-400.0,0.00019452,2]
[360113592,1746553846942,-163.4935406,0.00019452,2]
[360113595,1746553846952,-998.0,0.00019452,2]
[360113597,1746553846962,-400.0,0.00019452,2]
[360113599,1746553846971,-400.0,0.00019452,2]
[360113601,1746553846981,-400.0,0.00019452,2]
[360113603,1746553846990,-400.0,0.00019452,2]
[360113605,1746553846999,-400.0,0.00019452,2]
[360113607,1746553847009,-400.0,0.00019452,2]
[360113609,1746553847018,-400.0,0.00019452,2]
[360113611,1746553847029,-402.30534856,0.00019452,2]
[360113613,1746553847038,-403.16813055,0.00019452,2]
[360113615,1746553847047,-400.0,0.00019452,2]
[360113617,1746553847057,-400.0,0.00019452,2]
[360113619,1746553847067,-400.0,0.00019452,2]
[360113621,1746553847077,-400.0,0.00019452,2]
[360113623,1746553847090,-400.0,0.00019452,2]
[360113625,1746553847101,-1358.88,0.00019452,2]
[360113627,1746553847112,-400.0,0.00019452,2]
[360113629,1746553847123,-400.0,0.00019452,2]
[360113631,1746553847134,-400.0,0.00019452,2]
[360113633,1746553847143,-400.0,0.00019452,2]
[360113635,1746553847154,-400.0,0.00019452,2]
[360113637,1746553847164,-400.0,0.00019452,2]
[360113639,1746553847175,-400.0,0.00019452,2]
[360113642,1746553847185,-400.0,0.00019452,2]
[360113644,1746553847194,-309.69643883,0.00019452,2]
[360113646,1746553847204,-400.0,0.00019452,2]
[360113648,1746553847214,-400.0,0.00019452,2]
[360113650,1746553847224,-400.0,0.00019452,2]
[360113652,1746553847233,-400.0,0.00019452,2]
[360113654,1746553847243,-400.0,0.00019452,2]
[360113656,1746553847253,-511.39966207,0.00019452,2]
[360113658,1746553847263,-400.0,0.00019452,2]
[360113660,1746553847273,-400.0,0.00019452,2]
[360113662,1746553847282,-400.0,0.00019452,2]
[360113664,1746553847292,-400.0,0.00019452,2]
[360113666,1746553847301,-400.0,0.00019452,2]
[360113668,1746553847311,-400.0,0.00019452,2]
[360113670,1746553847320,-582.88,0.00019452,2]
[360113672,1746553847331,-1683.43,0.00019452,2]
[360113674,1746553847341,-400.0,0.00019452,2]
[360113676,1746553847350,-400.0,0.00019452,2]
[360113678,1746553847359,-400.0,0.00019452,2]
[360113680,1746553847369,-400.0,0.00019452,2]
[360113682,1746553847378,-307.91332687,0.00019452,2]
[360113684,1746553847388,-400.0,0.00019452,2]
[360113686,1746553847397,-400.0,0.00019452,2]
[360113688,1746553847407,-400.0,0.00019452,2]
[360113689,1746553847417,-400.0,0.00019452,2]
[360113691,1746553847427,-204.21910831,0.00019452,2]
[360113693,1746553847437,-400.0,0.00019452,2]
[360113695,1746553847447,-400.0,0.00019452,2]
[360113697,1746553847456,-400.0,0.00019452,2]
[360113699,1746553847465,-500.0,0.00019452,2]
[360113701,1746553847475,-400.0,0.00019452,2]
[360113703,1746553847485,-400.0,0.00019452,2]
[360113706,1746553847495,-809.46,0.00019452,2]
[360113708,1746553847505,-400.0,0.00019452,2]
[360113710,1746553847515,-400.0,0.00019452,2]
[360113712,1746553847524,-400.0,0.00019452,2]
[360113713,1746553847534,-400.0,0.00019452,2]
[360113716,1746553847544,-500.0,0.00019452,2]
[360113717,1746553847553,-560.8,0.00019452,2]
[360113719,1746553847562,-400.0,0.00019452,2]
[360113721,1746553847572,-400.0,0.00019452,2]
[360113723,1746553847582,-983.98,0.00019452,2]
[360113725,1746553847592,-984.36,0.00019452,2]
[360113728,1746553847602,-343.05919239,0.00019452,2]
[360113730,1746553847612,-1994.82,0.00019452,2]
[360113732,1746553847622,-400.0,0.00019452,2]
[360113734,1746553847631,-400.0,0.00019452,2]
[360113736,1746553847641,-400.0,0.00019452,2]
[360113738,1746553847651,-400.0,0.00019452,2]
[360113739,1746553847660,-615.86,0.00019452,2]
[360113741,1746553847670,-400.0,0.00019452,2]
[360113743,1746553847679,-400.0,0.00019452,2]
[360113746,1746553847689,-455.08,0.00019452,2]
[360113747,1746553847699,-1369.35,0.00019452,2]
[360113749,1746553847708,-204.85885003,0.00019452,2]
[360113751,1746553847718,-400.0,0.00019452,2]
[360113753,1746553847727,-400.0,0.00019452,2]
[360113756,1746553847737,-400.0,0.00019452,2]
[360113757,1746553847747,-357.10086959,0.00019452,2]
[360113759,1746553847756,-400.0,0.00019452,2]
[360113761,1746553847767,-400.0,0.00019452,2]
[360113763,1746553847776,-598.99,0.00019452,2]
[360113765,1746553847785,-560.92,0.00019452,2]
[360113767,1746553847796,-509.23200127,0.00019452,2]
[360113770,1746553847807,-401.28101685,0.00019452,2]
[360113772,1746553847816,-400.0,0.00019452,2]
[360113774,1746553847826,-400.0,0.00019452,2]
[360113776,1746553847836,-400.0,0.00019452,2]
[360113778,1746553847845,-400.0,0.00019452,2]
[360113780,1746553847855,-400.0,0.00019452,2]
[360113782,1746553847865,-2816.44,0.00019452,2]
[360113784,1746553847875,-400.0,0.00019452,2]
[360113786,1746553847884,-583.38,0.00019452,2]
[360113788,1746553847894,-860.94,0.00019452,2]
[360113790,1746553847903,-437.22,0.00019452,2]
[360113792,1746553847914,-400.0,0.00019452,2]
[360113794,1746553847924,-400.0,0.00019452,2]
[360113796,1746553847933,-400.0,0.00019452,2]
[360113798,1746553847943,-400.0,0.00019452,2]
[360113800,1746553847953,-400.0,0.00019452,2]
[360113802,1746553847963,-400.0,0.00019452,2]
[360113803,1746553847973,-400.0,0.00019452,2]
[360113805,1746553847982,-407.5,0.00019452,2]
[360113807,1746553847991,-400.0,0.00019452,2]
[360113809,1746553848001,-400.0,0.00019452,2]
[360113813,1746553848021,-400.0,0.00019452,2]
[360113815,1746553848031,-317.15975652,0.00019452,2]
[360113817,1746553848041,-440.42367638,0.00019452,2]
[360113819,1746553848051,-400.0,0.00019452,2]
[360113821,1746553848061,-400.0,0.00019452,2]
[360113823,1746553848071,-400.0,0.00019452,2]
[360113825,1746553848083,-400.0,0.00019452,2]
[360113827,1746553848093,-5043.3,0.00019452,2]
[360113829,1746553848102,-400.0,0.00019452,2]
[360113831,1746553848113,-400.0,0.00019452,2]
[360113833,1746553848125,-410.68,0.00019452,2]
[360113835,1746553848135,-433.28797714,0.00019452,2]
[360113837,1746553848146,-400.0,0.00019452,2]
[360113839,1746553848158,-400.0,0.00019452,2]
[360113841,1746553848169,-400.0,0.00019452,2]
[360113843,1746553848178,-510.75279138,0.00019452,2]
[360113845,1746553848188,-400.0,0.00019452,2]
[360113847,1746553848198,-400.0,0.00019452,2]
[360113849,1746553848208,-400.0,0.00019452,2]
[360113851,1746553848218,-400.0,0.00019452,2]
[360113853,1746553848228,-1659.89,0.00019452,2]
[360113855,1746553848238,-461.86,0.00019452,2]
[360113857,1746553848248,-400.0,0.00019452,2]
[360113859,1746553848259,-400.0,0.00019452,2]
[360113861,1746553848269,-400.0,0.00019452,2]
[360113863,1746553848279,-3229.77,0.00019452,2]
[360113865,1746553848289,-400.0,0.00019452,2]
[360113882,1746553848298,-400.0,0.00019452,2]
[360113887,1746553848475,-400.0,0.00019452,2]
[360113889,1746553848485,-400.0,0.00019452,2]
[360113891,1746553848495,-400.0,0.00019452,2]
[360113893,1746553848505,-400.0,0.00019452,2]
[360113895,1746553848514,-1123.43,0.00019452,2]
[360113897,1746553848524,-839.17,0.00019452,2]
[360113899,1746553848534,-400.0,0.00019452,2]
[360113900,1746553848543,-400.48,0.00019452,2]
[360113903,1746553848553,-400.0,0.00019452,2]
[360113904,1746553848562,-400.0,0.00019452,2]
[360113906,1746553848571,-458.42,0.00019452,2]
[360113908,1746553848581,-400.0,0.00019452,2]
[360113910,1746553848591,-500.0,0.00019452,2]
[360113913,1746553848601,-400.0,0.00019452,2]
[360113914,1746553848611,-1253.69,0.00019452,2]
[360113916,1746553848621,-489.46,0.00019452,2]
[360113918,1746553848630,-400.0,0.00019452,2]
[360113921,1746553848640,-400.0,0.00019452,2]
[360113922,1746553848650,-400.0,0.00019452,2]
[360113924,1746553848660,-400.0,0.00019452,2]
[360113927,1746553848670,-400.0,0.00019452,2]
[360113929,1746553848679,-1379.79,0.00019452,2]
[360113930,1746553848689,-924.52,0.00019452,2]
[360113932,1746553848699,-727.26,0.00019452,2]
[360113934,1746553848710,-400.0,0.00019452,2]
[360113936,1746553848720,-400.0,0.00019452,2]
[360113939,1746553848731,-400.0,0.00019452,2]
[360113940,1746553848741,-831.3,0.00019452,2]
[360113942,1746553848751,-400.0,0.00019452,2]
[360113944,1746553848761,-400.0,0.00019452,2]
[360113946,1746553848771,-857.73,0.00019452,2]
[360113948,1746553848781,-400.0,0.00019452,2]
[360113950,1746553848791,-1614.19,0.00019452,2]
[360113952,1746553848801,-469.63,0.00019452,2]
[360113955,1746553848811,-400.0,0.00019452,2]
[360113956,1746553848820,-613.43,0.00019452,2]
[360113959,1746553848830,-400.0,0.00019452,2]
[360113960,1746553848840,-1662.3,0.00019452,2]
[360113963,1746553848850,-400.0,0.00019452,2]
[360113964,1746553848859,-358.0,0.00019452,2]
[360113966,1746553848869,-400.0,0.00019452,2]
[360113968,1746553848879,-400.0,0.00019452,2]
[360113970,1746553848888,-400.0,0.00019452,2]
[360113972,1746553848898,-400.0,0.00019452,2]
[360113974,1746553848907,-400.0,0.00019452,2]
[360113976,1746553848917,-1567.11,0.00019452,2]
[360113978,1746553848927,-1000.0,0.00019452,2]
[360113981,1746553848938,-400.0,0.00019452,2]
[360113982,1746553848947,-400.0,0.00019452,2]
[360113984,1746553848957,-819.91,0.00019452,2]
[360113986,1746553848966,-400.0,0.00019452,2]
[360113988,1746553848976,-400.0,0.00019452,2]
[360113990,1746553848985,-542.23,0.00019452,2]
[360113992,1746553848994,-400.0,0.00019452,2]
[360113994,1746553849004,-400.0,0.00019452,2]
[360113996,1746553849013,-5626.13,0.00019452,2]
[360113998,1746553849022,-405.99455463,0.00019452,2]
[360114000,1746553849031,-400.0,0.00019452,2]
[360114002,1746553849040,-400.0,0.00019452,2]
[360114004,1746553849050,-400.0,0.00019452,2]
[360114006,1746553849059,-400.0,0.00019452,2]
[360114008,1746553849069,-400.0,0.00019452,2]
[360114010,1746553849080,-406.16086678,0.00019452,2]
[360114012,1746553849089,-400.0,0.00019452,2]
[360114014,1746553849100,-400.0,0.00019452,2]
[360114016,1746553849109,-400.0,0.00019452,2]
[360114018,1746553849119,-460.53,0.00019452,2]
[360114020,1746553849128,-400.0,0.00019452,2]
[360114022,1746553849138,-477.29,0.00019452,2]
[360114024,1746553849150,-400.0,0.00019452,2]
[360114025,1746553849162,-400.0,0.00019452,2]
[360114027,1746553849171,-400.0,0.00019452,2]
[360114029,1746553849180,-400.0,0.00019452,2]
[360114031,1746553849190,-403.89954191,0.00019452,2]
[360114032,1746553849200,-400.0,0.00019452,2]
[360114033,1746553849210,-497.0,0.00019452,2]
[360114034,1746553849220,-400.0,0.00019452,2]
[360114035,1746553849230,-400.0,0.00019452,2]
[360114036,1746553849240,-400.0,0.00019452,2]
[360114037,1746553849249,-400.0,0.00019452,2]
[360114038,1746553849259,-805.72,0.00019452,2]
[360114039,1746553849268,-400.0,0.00019452,2]
[360114040,1746553849278,-400.0,0.00019452,2]
[360114041,1746553849287,-530.52,0.00019452,2]
[360114042,1746553849297,-451.51,0.00019452,2]
[360114043,1746553849306,-746.96,0.00019452,2]
[360114044,1746553849316,-400.0,0.00019452,2]
[360114045,1746553849326,-400.0,0.00019452,2]
[360114046,1746553849336,-518.87988151,0.00019452,2]
[360114047,1746553849346,-475.8602383,0.00019452,2]
[360114048,1746553849356,-326.10167798,0.00019452,2]
[360114049,1746553849366,-545.63,0.00019452,2]
[360114050,1746553849376,-476.22725937,0.00019452,2]
[360114051,1746553849386,-1601.87,0.00019452,2]
[360114052,1746553849395,-400.0,0.00019452,2]
[360114053,1746553849404,-500.0,0.00019452,2]
[360114054,1746553849413,-400.0,0.00019452,2]
[360114055,1746553849423,-400.0,0.00019452,2]
[360114056,1746553849433,-400.0,0.00019452,2]
[360114057,1746553849442,-400.0,0.00019452,2]
[360114058,1746553849452,-400.0,0.00019452,2]
[360114059,1746553849462,-449.53782653,0.00019452,2]
[360114060,1746553849471,-204.58577013,0.00019452,2]
[360114061,1746553849481,-400.0,0.00019452,2]
[360114062,1746553849490,-212.45092939,0.00019452,2]
[360114063,1746553849500,-400.0,0.00019452,2]
[360114064,1746553849509,-400.0,0.00019452,2]
[360114065,1746553849519,-400.0,0.00019452,2]
[360114066,1746553849529,-400.0,0.00019452,2]
[360114067,1746553849538,-400.0,0.00019452,2]
[360114068,1746553849547,-640.19,0.00019452,2]
[360114070,1746553849557,-585.78,0.00019452,2]
[360114072,1746553849567,-400.0,0.00019452,2]
[360114074,1746553849577,-1000.0,0.00019452,2]
[360114076,1746553849586,-406.18211038,0.00019452,2]
[360114078,1746553849597,-400.0,0.00019452,2]
[360114080,1746553849607,-400.0,0.00019452,2]
[360114082,1746553849616,-400.0,0.00019452,2]
[360114084,1746553849626,-181.26021916,0.00019452,2]
[360114086,1746553849635,-400.0,0.00019452,2]
[360114088,1746553849645,-400.0,0.00019452,2]
[360114090,1746553849654,-400.0,0.00019452,2]
[360114092,1746553849664,-2370.45,0.00019452,2]
[360114094,1746553849673,-400.0,0.00019452,2]
[360114096,1746553849683,-400.0,0.00019452,2]
[360114098,1746553849692,-1451.93,0.00019452,2]
[360114100,1746553849702,-400.0,0.00019452,2]
[360114102,1746553849712,-400.0,0.00019452,2]
[360114104,1746553849721,-400.0,0.00019452,2]
[360114106,1746553849730,-400.0,0.00019452,2]
[360114108,1746553849739,-411.77735072,0.00019452,2]
[360114110,1746553849749,-400.0,0.00019452,2]
[360114112,1746553849758,-402.8323114,0.00019452,2]
[360114113,1746553849768,-692.67,0.00019452,2]
[360114115,1746553849778,-400.0,0.00019452,2]
[360114116,1746553849788,-400.0,0.00019452,2]
[360114117,1746553849797,-661.14,0.00019452,2]
[360114119,1746553849807,-400.0,0.00019452,2]
[360114121,1746553849816,-647.06,0.00019452,2]
[360114123,1746553849825,-400.0,0.00019452,2]
[360114125,1746553849834,-3008.22,0.00019452,2]
[360114127,1746553849844,-400.0,0.00019452,2]
[360114129,1746553849853,-405.01545325,0.00019452,2]
[360114131,1746553849863,-400.0,0.00019452,2]
[360114133,1746553849872,-151.791899,0.00019452,2]
[360114135,1746553849881,-400.0,0.00019452,2]
[360114137,1746553849890,-400.0,0.00019452,2]
[360114139,1746553849899,-224.44762557,0.00019452,2]
[360114141,1746553849908,-546.22406821,0.00019452,2]
[360114143,1746553849917,-400.0,0.00019452,2]
[360114145,1746553849927,-1364.2,0.00019452,2]
[360114147,1746553849936,-2621.11,0.00019452,2]
[360114149,1746553849946,-403.80119766,0.00019452,2]
[360114151,1746553849955,-400.0,0.00019452,2]
[360114153,1746553849965,-400.0,0.00019452,2]
[360114155,1746553849974,-500.0,0.00019452,2]
[360114157,1746553849983,-433.78,0.00019452,2]
[360114159,1746553849993,-400.0,0.00019452,2]
[360114161,1746553850002,-400.0,0.00019452,2]
[360114163,1746553850011,-400.0,0.00019452,2]
[360114165,1746553850022,-400.0,0.00019452,2]
[360114167,1746553850031,-2880.62,0.00019452,2]
[360114168,1746553850040,-488.36,0.00019452,2]
[360114170,1746553850049,-400.0,0.00019452,2]
[360114172,1746553850058,-400.0,0.00019452,2]
[360114174,1746553850067,-402.41187786,0.00019452,2]
[360114176,1746553850078,-151.0,0.00019452,2]
[360114178,1746553850089,-400.0,0.00019452,2]
[360114181,1746553850099,-1103.28,0.00019452,2]
[360114183,1746553850108,-400.0,0.00019452,2]
[360114184,1746553850117,-457.69706279,0.00019452,2]
[360114186,1746553850127,-400.0,0.00019452,2]
[360114188,1746553850137,-400.0,0.00019452,2]
[360114190,1746553850145,-2156.85,0.00019452,2]
[360114192,1746553850154,-400.0,0.00019452,2]
[360114194,1746553850165,-593.48,0.00019452,2]
[360114196,1746553850175,-400.0,0.00019452,2]
[360114199,1746553850184,-945.39,0.00019452,2]
[360114201,1746553850195,-400.0,0.00019452,2]
[360114202,1746553850205,-1126.35,0.00019452,2]
[360114204,1746553850214,-400.0,0.00019452,2]
[360114206,1746553850223,-400.0,0.00019452,2]
[360114208,1746553850233,-400.0,0.00019452,2]
[360114210,1746553850242,-400.0,0.00019452,2]
[360114212,1746553850251,-1940.39,0.00019452,2]
[360114214,1746553850261,-400.0,0.00019452,2]
[360114216,1746553850270,-400.0,0.00019452,2]
[360114218,1746553850280,-400.0,0.00019452,2]
[360114220,1746553850289,-400.0,0.00019452,2]
[360114223,1746553850300,-451.19,0.00019452,2]
[360114225,1746553850309,-1202.38,0.00019452,2]
[360114227,1746553850319,-1324.45,0.00019452,2]
[360114240,1746553850435,-417.45388257,0.00019452,2]
[360114242,1746553850446,-4275.0,0.00019452,2]
[360114244,1746553850457,-400.0,0.00019452,2]
[360114246,1746553850467,-400.0,0.00019452,2]
[360114249,1746553850477,-400.0,0.00019452,2]
[360114251,1746553850486,-400.0,0.00019452,2]
[360114253,1746553850495,-400.0,0.00019452,2]
[360114255,1746553850505,-2645.03,0.00019452,2]
[360114257,1746553850514,-400.0,0.00019452,2]
[360114259,1746553850523,-1713.68,0.00019452,2]
[360114261,1746553850533,-400.0,0.00019452,2]
[360114263,1746553850542,-1965.93,0.00019452,2]
[360114265,1746553850552,-435.44,0.00019452,2]
[360114267,1746553850561,-400.0,0.00019452,2]
[360114268,1746553850570,-494.49746184,0.00019452,2]
[360114303,1746553851731,-1695.78,0.00019178,2]
[360114304,1746553851741,-502.34032409,0.00019178,2]
[360114305,1746553851751,-185.5777499,0.00019178,2]
[360114306,1746553851760,-184.97253816,0.00019452,2]
[360114307,1746553851771,-400.0,0.00019452,2]
[360114308,1746553851781,-400.0,0.00019452,2]
[360114309,1746553851936,-129.83857335,0.00019452,2]
[360114351,1746555031838,-163.51819778,0.00017152,2]
[360114353,1746555031848,-2887.9820759,0.00017545,2]
[360114355,1746555031858,-300.0,0.00017694,2]
[360114357,1746555031868,-322.55815541,0.00017695,2]
[360114359,1746555031877,-500.0,0.00017695,2]
[360114361,1746555031887,-585.13652031,0.00017695,2]
[360114363,1746555031896,-585.13652031,0.00017695,2]
[360114365,1746555031906,-376.13786868,0.00017695,2]
[360114368,1746555031916,-585.13652031,0.00017695,2]
[360114370,1746555031925,-585.13652031,0.00017695,2]
[360114372,1746555031935,-585.13652031,0.00017695,2]
[360114374,1746555031944,-585.13652031,0.00017695,2]
[360114376,1746555031954,-585.13652031,0.00017695,2]
[360114378,1746555031964,-585.13652031,0.00017695,2]
[360114380,1746555031974,-585.13652031,0.00017695,2]
[360114382,1746555031983,-585.13652031,0.00017695,2]
[360114383,1746555031992,-585.13652031,0.00017695,2]
[360114385,1746555032002,-585.13652031,0.00017695,2]
[360114388,1746555032011,-585.13652031,0.00017695,2]
[360114391,1746555032020,-585.13652031,0.00017695,2]
[360114394,1746555032029,-585.13652031,0.00017695,2]
[360114397,1746555032039,-585.13652031,0.00017695,2]
[360114400,1746555032048,-585.13652031,0.00017695,2]
[360114403,1746555032057,-585.13652031,0.00017695,2]
[360114405,1746555032067,-585.13652031,0.00017695,2]
[360114406,1746555032076,-585.13652031,0.00017695,2]
[360114407,1746555032085,-585.13652031,0.00017695,2]
[360114408,1746555032094,-585.13652031,0.00017695,2]
[360114409,1746555032103,-585.13652031,0.00017695,2]
[360114410,1746555032112,-585.13652031,0.00017695,2]
[360114411,1746555032121,-585.13652031,0.00017695,2]
[360114412,1746555032131,-585.13652031,0.00017695,2]
[360114413,1746555032141,-585.13652031,0.00017695,2]
[360114414,1746555032150,-585.13652031,0.00017695,2]
[360114415,1746555032159,-585.13652031,0.00017695,2]
[360114416,1746555032169,-585.13652031,0.00017695,2]
[360114417,1746555032178,-585.13652031,0.00017695,2]
[360114418,1746555032187,-585.13652031,0.00017695,2]
[360114419,1746555032196,-585.13652031,0.00017695,2]
[360114420,1746555032205,-585.13652031,0.00017695,2]
[360114421,1746555032214,-585.13652031,0.00017695,2]
[360114422,1746555032224,-585.13652031,0.00017695,2]
[360114423,1746555032234,-585.13652031,0.00017695,2]
[360114424,1746555032246,-585.13652031,0.00017695,2]
[360114425,1746555032257,-585.13652031,0.00017695,2]
[360114426,1746555032266,-585.13652031,0.00017695,2]
[360114427,1746555032275,-585.13652031,0.00017695,2]
[360114428,1746555032285,-585.13652031,0.00017695,2]
[360114429,1746555032294,-585.13652031,0.00017695,2]
[360114430,1746555032303,-585.13652031,0.00017695,2]
[360114431,1746555032312,-585.13652031,0.00017695,2]
[360114432,1746555032322,-585.13652031,0.00017695,2]
[360114433,1746555032331,-585.13652031,0.00017695,2]
[360114434,1746555032339,-52.59714503,0.00017695,2]